Cogmind - Beta 14 @@@ ROGUE MODE // 2024.12.27 @ 12:46:49 Player: Fazzonamite Result: Destroyed by D-53 Grenadier with Mini Grenade Launcher Performance ------------- Evolutions (0) 0 Regions Visited (4) 800 Robots Destroyed (22) 110 Value Destroyed (421) 421 Prototype IDs (25) 500 Alien Tech Used (0) 0 Bonus (300) 300 TOTAL SCORE: 2131 Bonus ------- Aligned with FarCom 300 Cogmind --------- Core Integrity 0/250 Matter 291/300 Energy 100/100 System Corruption 0% Temperature Cool (0) Movement Rolling (115) Ox1 Location -9/Mines Parts ------- > --- POWER (1) -------- (None) > --- PROPULSION (2) --- Compact Wheel > --- UTILITY (2) ------ Large Storage Unit Trap Reconfigurator > --- WEAPON (2) ------- (None) > --- INVENTORY (15) --- Light Ion Engine Light Ion Engine Light Nuclear Core Improved Heat Sink High-capacity Matter Pod (200) Weight Redist. System Sensor Array Signal Interpreter Transport Network Coupler ECM Suite Light Armor Plating Light Armor Plating EM Pulse Gun Light Assault Rifle Peak State ------------ > --- POWER ------------ Ion Engine > --- PROPULSION ------- Compact Wheel Compact Wheel > --- UTILITY ---------- Large Storage Unit Trap Reconfigurator > --- WEAPON ----------- Assault Rifle Light Assault Rifle > --- INVENTORY -------- Light Ion Engine Light Ion Engine Light Nuclear Core Improved Heat Sink High-capacity Matter Pod Weight Redist. System Sensor Array Signal Interpreter Transport Network Coupler ECM Suite Light Armor Plating Light Armor Plating EM Pulse Gun Light Assault Rifle [Rating: 16] Favorites ----------- Power Ion Engine Engine Ion Engine Propulsion Compact Wheel Wheel Compact Wheel Utility Large Storage Unit Device Sensor Array Storage Large Storage Unit Protection Light Armor Plating Weapon Assault Rifle Ballistic Gun Assault Rifle Build | -11 -10 -10 -10 -9 ------- Run | Yrd Mat Min Exi Min Slots Evolved . | . . . . . Power . | . . . . . Propulsion . | . . . . . Utility . | . . . . . Weapon . | . . . . . Parts Attached 22 | 7 9 5 . 1 Power 3 | 1 1 1 . . Engine 3 | 1 1 1 . . Core . | . . . . . Reactor . | . . . . . Propulsion 5 | 2 1 2 . . Treads . | . . . . . Leg . | . . . . . Wheel 5 | 2 1 2 . . Hover . | . . . . . Flight . | . . . . . Utility 10 | 2 5 2 . 1 Device 5 | 1 2 1 . 1 Storage 2 | 1 1 . . . Processor . | . . . . . Hackware . | . . . . . Protection 3 | . 2 1 . . Artifact . | . . . . . Weapon 4 | 2 2 . . . Energy Gun . | . . . . . Energy Cannon . | . . . . . Ballistic Gun 4 | 2 2 . . . Ballistic Cannon . | . . . . . Launcher . | . . . . . Special Weapon . | . . . . . Impact Weapon . | . . . . . Slashing Weapon . | . . . . . Piercing Weapon . | . . . . . Special Melee Weapon . | . . . . . Unidentified Prototypes . | . . . . . Parts Lost 7 | . 1 2 . 4 Power 1 | . . . . 1 Propulsion 4 | . 1 2 . 1 Utility . | . . . . . Weapon 2 | . . . . 2 Highest Loss Streak 4 | . 1 2 . 4 To Critical Strikes . | . . . . . Average Slot Usage (%) 98 | . 96 99 100 98 Engine 13 | . 14 14 14 13 Wheel 27 | . 26 27 28 27 Device 13 | . 13 11 14 14 Storage 14 | . 14 14 14 14 Ballistic Gun 27 | . 27 28 28 27 Peak Build Rating 16 | 9 9 8 9 16 Average Rating 8 | 4 8 7 8 12 On Entrance 6 | . 9 8 8 9 Naked Turns . | . . . . . Heaviest Build 31 | 14 31 31 29 29 Greatest Support 32 | 26 26 32 32 32 Greatest Overweight (x) 1 | 1 1 1 . . Average Overweight (x) . | . . . . . Largest Inventory Capacity 15 | 8 15 15 15 15 Average Capacity 13 | 7 12 15 15 15 Most Carried 15 | 6 15 14 14 14 Average Carried 11 | 2 8 12 13 14 Final Capacity 15 | 8 15 15 15 15 Final Carried 14 | 3 14 13 14 14 Class Distribution -------------------- 94% | Mutant 5% | Skirmisher Dominant Class ---------------- Mutant | -10/Materials Mutant | -10/Mines Mutant | -10/Exiles Skirmisher | -9/Mines Resources | -11 -10 -10 -10 -9 ----------- Run | Yrd Mat Min Exi Min Matter Collected 972 | 254 590 128 . . Remotely . | . . . . . Salvage Created 590 | 26 391 173 . . Parts 48 | 3 31 14 . . Haulers Intercepted 1 | . 1 . . . Recyclers Shooed . | . . . . . Parts Field Recycled . | . . . . . Retrieved Matter . | . . . . . Parts Self-Destructed . | . . . . . Prevented . | . . . . . Kills | -11 -10 -10 -10 -9 ------- Run | Yrd Mat Min Exi Min Combat Hostiles Destroyed 17 | . 10 7 . . Guns 17 | . 10 7 . . Classes Destroyed 5 | 1 4 . . . Tunneler 1 | 1 . . . . Hauler 1 | . 1 . . . Watcher 3 | . 3 . . . Swarmer 10 | . 5 5 . . Grunt 7 | . 5 2 . . Best Kill Streak 4 | 1 4 3 . . Combat Bots Only 4 | . 4 3 . . Max Kills in Single Turn 1 | 1 1 1 . . Gunslinging . | . . . . . Exploded . | . . . . . Melee . | . . . . . Uniques/NPCs Destroyed . | . . . . . Combat | -11 -10 -10 -10 -9 -------- Run | Yrd Mat Min Exi Min Hostile Shots Fired 101 | . 54 39 . 8 Missed 18 | . 10 8 . . Damage Taken 1075 | . 461 307 . 307 Core 257 | . 65 30 . 162 Absorbed by Shields . | . . . . . Core Remaining (%) 100 | 100 . . . . Volleys Fired 66 | 1 38 22 . 5 Largest 2 | 2 2 2 . 2 Hottest 40 | 40 40 40 . 40 Shots Fired 128 | 2 73 44 . 9 Gun 128 | 2 73 44 . 9 Cannon . | . . . . . Launcher . | . . . . . Special . | . . . . . Kinetic 128 | 2 73 44 . 9 Thermal . | . . . . . Explosive . | . . . . . Electromagnetic . | . . . . . Robot Hit Streak 20 | 1 20 6 . 3 Robot Miss Streak 4 | . 3 4 . 2 Penetration Max . | . . . . . Secondary Targets 3 | . 1 2 . . Max Gunslinging Chain 1 | . 1 1 . . Shots Hit Robots 82 | 1 51 25 . 5 Core Hits 38 | 1 24 12 . 1 Critical Kills . | . . . . . Critical Parts Destroyed . | . . . . . Critical Strikes . | . . . . . Melee Attacks . | . . . . . Impact . | . . . . . Slashing . | . . . . . Piercing . | . . . . . Sneak Attacks . | . . . . . Combat Hostiles . | . . . . . Follow-up Attacks . | . . . . . Damage Inflicted 898 | 12 552 280 . 54 Guns 898 | 12 552 280 . 54 Cannons . | . . . . . Explosions . | . . . . . Melee . | . . . . . Ramming . | . . . . . Kinetic 898 | 12 552 280 . 54 Thermal . | . . . . . Explosive . | . . . . . Electromagnetic . | . . . . . Impact . | . . . . . Slashing . | . . . . . Piercing . | . . . . . Highest Corruption . | . . . . . Average Corruption . | . . . . . Corruption Purged . | . . . . . Corruption Blocked . | . . . . . Overload Shots . | . . . . . Overflow Damage . | . . . . . Projectiles . | . . . . . Explosions . | . . . . . Melee . | . . . . . Knockbacks . | . . . . . Impact . | . . . . . Kinetic . | . . . . . Secondary . | . . . . . Self-Inflicted Damage . | . . . . . Shots . | . . . . . Rammed . | . . . . . Targets Rammed . | . . . . . Kicked . | . . . . . Crushed . | . . . . . Highest Temperature 67 | . 31 67 . . Average Temperature 19 | . 11 28 . . Received Heat Transfer 267 | . 174 93 . . Siege Activations . | . . . . . Robots Corrupted . | . . . . . Combat Hostiles . | . . . . . Parts Fried . | . . . . . Impact Corruptions . | . . . . . Robots Melted . | . . . . . Combat Hostiles . | . . . . . Parts Melted . | . . . . . Heat Transferred . | . . . . . Parts Sabotaged . | . . . . . Parts Stolen . | . . . . . Parts Stripped . | . . . . . Power Chain Reactions . | . . . . . Alert | -11 -10 -10 -10 -9 ------- Run | Yrd Mat Min Exi Min Peak Influence 209 | 5 209 181 . . Initial 81 | . 3 81 . . Average 68 | 2 54 125 . . Maximum Alert Level 1 | . 1 . . . Low Security (%) 97 | 100 95 100 . 100 Level 1 2 | . 4 . . . Level 2 . | . . . . . Level 3 . | . . . . . Level 4 . | . . . . . Level 5 . | . . . . . High Security . | . . . . . Max Security . | . . . . . Squads Dispatched 1 | . 1 . . . Investigation . | . . . . . Extermination . | . . . . . Reinforcement 1 | . 1 . . . Assault . | . . . . . Garrison . | . . . . . Intercept . | . . . . . Searches Triggered . | . . . . . Construction Impeded . | . . . . . Haulers Reinforced . | . . . . . Active Scanning Responses . | . . . . . Cargo Convoy Interrupts . | . . . . . Stealth | -11 -10 -10 -10 -9 --------- Run | Yrd Mat Min Exi Min Distress Signals 1 | . 1 . . . Communications Jammed . | . . . . . Distress Signals . | . . . . . Times Spotted 24 | . 14 8 . 2 Peak Tracking Total 4 | . 4 3 . 2 Tactical Retreats . | . . . . . Traps | -11 -10 -10 -10 -9 ------- Run | Yrd Mat Min Exi Min Traps Triggered . | . . . . . Indirectly . | . . . . . Trap Hack Attempts . | . . . . . Triggered . | . . . . . Disarmed 6 | . 6 . . . Reprogrammed . | . . . . . Reused . | . . . . . Traps Extracted . | . . . . . Installed . | . . . . . Triggered . | . . . . . Machines | -11 -10 -10 -10 -9 ---------- Run | Yrd Mat Min Exi Min Machines Disabled . | . . . . . Max in Single Turn . | . . . . . Machines Repaired . | . . . . . Machines Dismantled . | . . . . . Machines Sabotaged . | . . . . . Overloaded Fab Kills . | . . . . . Hacking | -11 -10 -10 -10 -9 --------- Run | Yrd Mat Min Exi Min Machines Accessed 9 | . 5 . 4 . Terminals 3 | . 3 . . . Fabricators . | . . . . . Repair Stations . | . . . . . Recycling Units 2 | . 2 . . . Scanalyzers . | . . . . . Garrison Access . | . . . . . Total Hacks 41 | . 14 . 27 . Successful 35 | . 8 . 27 . Failed 6 | . 6 . . . Catastrophic 1 | . 1 . . . Database Lockouts . | . . . . . Manual 2 | . . . 2 . Terminals 8 | . 8 . . . Fabricators . | . . . . . Repair Stations . | . . . . . Recycling Units 6 | . 6 . . . Scanalyzers . | . . . . . Garrison Access . | . . . . . Terminal Hacks 30 | . 3 . 27 . Record 26 | . . . 26 . Prototype ID Bank 1 | . 1 . . . Locate Traps 1 | . 1 . . . Disarm Traps 1 | . 1 . . . Derelict Proto ID Bank 1 | . . . 1 . Fabricator Hacks . | . . . . . Repair Station Hacks . | . . . . . Recycling Unit Hacks 5 | . 5 . . . Recycle Component 1 | . 1 . . . Process 1 | . 1 . . . Report Inventory 2 | . 2 . . . Retrieve Matter 1 | . 1 . . . Scanalyzer . | . . . . . Garrison Access Hacks . | . . . . . Unauthorized Hacks . | . . . . . Terminals . | . . . . . Fabricators . | . . . . . Repair Stations . | . . . . . Recycling Units . | . . . . . Scanalyzers . | . . . . . Garrison Access . | . . . . . Data Cores Recovered . | . . . . . Used . | . . . . . Hacking Detections 3 | . 3 . . . Full Trace Events . | . . . . . Feedback Events . | . . . . . Feedback Blocked . | . . . . . Robot Schematics Acquired . | . . . . . Robots Built . | . . . . . Authchips . | . . . . . Time . | . . . . . Total Robot Build Rating . | . . . . . Part Schematics Acquired . | . . . . . Parts Built . | . . . . . Authchips . | . . . . . Time . | . . . . . Total Part Build Rating . | . . . . . Parts Repaired . | . . . . . Time . | . . . . . Parts Recycled 1 | . 1 . . . Recycled Matter 13 | . 13 . . . Retrieved Matter 13 | . 13 . . . Retrieved Components . | . . . . . Parts Scanalyzed . | . . . . . Part Schematics Acquired . | . . . . . Parts Damaged . | . . . . . Bothacking | -11 -10 -10 -10 -9 ------------ Run | Yrd Mat Min Exi Min Used RIF Installer . | . . . . . Robots Hacked . | . . . . . Non-combat . | . . . . . Combat . | . . . . . Robot Hacks Applied . | . . . . . Relay Couplers Released . | . . . . . Fabnet Peak Effective % . | . . . . . Robots Rewired . | . . . . . Allies Hacked . | . . . . . Hacks Repelled . | . . . . . Allies | -11 -10 -10 -10 -9 -------- Run | Yrd Mat Min Exi Min Total Allies 3 | . . . . 3 Largest Group 3 | . . . . 3 Highest-Rated Group 40 | . . . . 40 Highest-Rated Ally 16 | . . . . 16 Total Orders . | . . . . . Ally Attacks 4 | . . . . 4 Total Damage 62 | . . . . 62 Kills . | . . . . . Allies Corrupted . | . . . . . Allies Melted . | . . . . . Intel | -11 -10 -10 -10 -9 ------- Run | Yrd Mat Min Exi Min Robot Analysis Total . | . . . . . Derelict Logs Recovered 2 | . . 1 . 1 Drone Launches . | . . . . . Drone Recoveries . | . . . . . Exploration | -11 -10 -10 -10 -9 ------------- Run | Yrd Mat Min Exi Min Turns Passed 2290 | 54 773 545 678 240 Spaces Moved 1847 | 43 476 438 678 212 Core 17 | 17 . . . . Treads . | . . . . . Legs . | . . . . . Wheels 1830 | 26 476 438 678 212 Hover . | . . . . . Flight . | . . . . . Fastest Speed 50 | 50 90 100 100 100 Average Speed 98 | 76 97 100 100 100 Slowest Speed 115 | 100 115 105 100 100 Overloaded Moves . | . . . . . Propulsion Burnouts . | . . . . . Robots Hopped . | . . . . . Cave-ins Triggered . | . . . . . Exploration Rate (%) 50 | 3 61 59 92 38 Regions Visited 4 Branch Regions 3 Pre-discovered Areas . | . . . . . Known Exits Taken 1 | . . . 1 . Unknown Exits Taken 3 | 1 1 1 . . Scrap Searched 1 | . . . . 1 Spaces Dug . | . . . . . Terrain Destroyed . | . . . . . Melee . | . . . . . Projectile . | . . . . . AOE . | . . . . . Terrain Rammed . | . . . . . Walls Destroyed . | . . . . . Machines Disabled . | . . . . . Actions | -11 -10 -10 -10 -9 --------- Run | Yrd Mat Min Exi Min Total 2197 | 61 723 503 678 232 Wait 221 | 2 171 34 . 14 Move 1843 | 42 475 437 677 212 Hop . | . . . . . Pick Up 34 | 9 21 3 1 . Fast Attach 1 | 1 . . . . Attach 11 | 6 3 2 . . Detach . | . . . . . Swap 10 | . 6 3 . 1 Drop 11 | . 9 2 . . Fire 66 | 1 38 22 . 5 Melee . | . . . . . Ram . | . . . . . Kick . | . . . . . Crush . | . . . . . Escape Stasis . | . . . . . Rewire . | . . . . . Trap . | . . . . . Miscellaneous . | . . . . . Route ------- -11/Scrapyard -10/Materials -10/Mines (discovered 3 exits: [*Mat x2] / *Exi) -10/Exiles (discovered 2 exits: *Min x2) -9/Mines (discovered 1 exit: [*Mat]) History --------- Turn | Location | Event 12 | -11/Scrapyard | Discovered new exit (range 16) 55 | -11/Scrapyard | Entered Materials 300 | -10/Materials | Build established: Mutant 823 | -10/Materials | Discovered new exit (range 6) 828 | -10/Materials | Entered Mines 1096 | -10/Mines | Discovered new exit (range 5) 1213 | -10/Mines | Discovered new exit (range 9) 1368 | -10/Mines | Deemed a non-threat by the Exiles lab entrance 1369 | -10/Mines | Discovered new exit (range 5) 1373 | -10/Mines | Entered Exiles 1374 | -10/Exiles | Identified exit to Mines 1420 | -10/Exiles | Met 8R-AWN 1438 | -10/Exiles | Met EX-HEX 1480 | -10/Exiles | Met EX-DEC 1525 | -10/Exiles | Visited The Gauntlet 1788 | -10/Exiles | Met EX-BIN 1802 | -10/Exiles | Aligned with FarCom system 1803 | -10/Exiles | Given EX-Vault access code 1889 | -10/Exiles | Opened EX-Vault 1894 | -10/Exiles | Found Trap Reconfigurator 1915 | -10/Exiles | Warned to stay clear of 0b10 Research branches 2051 | -10/Exiles | Left Exiles lab with Trap Reconfigurator 2051 | -10/Exiles | Entered Mines 2054 | -9/Mines | Assisted by bots powering up and referring to "LRC-V3" 2059 | -9/Mines | Discovered new exit (range 14) 2185 | -9/Mines | Learned Materials emergency access door positions 2229 | -9/Mines | Assembled infested the area 2286 | -9/Mines | Core integrity fell below 50% 2288 | -9/Mines | Core integrity fell below 20% 2291 | -9/Mines | Destroyed by D-53 Grenadier with Mini Grenade Launcher Last Messages --------------- 02189_ A derelict is hurriedly installing traps. 02191_ 3V-H3B(g): "Hehe, this'll put a wrench in their mining defense operations..." 02191_ 3V-H3B(g) slips into the shadows. 02229_ ALERT: Infestation in the mines, dispatching Demolisher response squad. 02282_ C-30 ARC bursts open, deploying its payload. 02283_ D-53 Grenadier suffers critical hit (Burn). 02285_ R-06 Scavenger destroyed. 02285_ Mercenary 2a destroyed. 02285_ T-07 Excavator destroyed. 02285_ Trooper 2b destroyed. 02286_ The unstable cave ceiling collapses. 02287_ Com. Wheel destroyed. 02289_ Lgt. Assault Rifle destroyed. 02289_ Trooper 2a destroyed. 02289_ Ion Engine destroyed. 02291_ Assault Rifle destroyed. Map ----- +----------------------------------------------------+ | ?????????????????????????????????????????????????? | | ?????????????????????????????????????????????????? | | ?????????????????????????????????????????????????? | | ?????????????????????????????????????????????????? | | ?????????????????????????????????????????????????? | | ?????????????????????????????????????????????????? | | ?????????????????????????????????????????????????? | | ?????????????????????????????????????????????????? | | ?????????????????????????????????????????????????? | | ?????????????????????????????????????????????????? | | ?????????????????????????????????????????????????? | | ?????????????????????????????????????????????????? | | ?????????????????????????????????????????????????? | | ?????????????????????????????????????????????????? | | ?????????????????????????##??????????????????????? | | ????????????????????????? #??????????????????????? | | ????????????????????????? #??????????????????????? | | ????????????????????????# #??????????????????????? | | ????????????????######### ###????????????????????? | | ????????????????# ? ^ # #????????????????????? | | ??????###?####### ## # ##????????????????????? | | ????## ### ^ # ##???????????????????? | | ???## ?? # # ##??????????????????? | | ???# ## #???# #r #??????????????????? | | ??## #?# #???#^ #??????????????????? | | ??# #?# #???## ## @ #??????????????????? | | ?## #?# #????# ## #??????????????????? | | ## ##?# #????# ## d ##??????????????????? | | ##??# #????# ### = d #???????????????????? | | #?### ###??# #### %#??###??????????????? | | ### #### ####### #??# ##?????????????? | | ## #????# #??# ##????????????? | | #????# #### ##???????????? | | ## #????# ##??????????? | | """ #### #????###### ##?????????? | | """ #??# #?????????# #?????????? | | """ #??# ##?????????# ##????????? | | #??# ##??????????## #????????? | | #??## ##????????????## #####????? | | ## ##???## ##??????????????# ! #????? | | ######????#####??????????????## % #### #????? | | ##?????????# #?????????????## #??# #????? | | ###???????????# #????????????## ##?# #####? | | ??????????????# #????????????# ### #? | | ??##?????????## ##??????????## ###### ## | | ### ######## ##?????????# ##?# ## | | ########### ### ## | | ###### | | ?????????## ### | | ???????????## ###################?###### ##### | +----------------------------------------------------+ Best States ------------- Heat Dissipation 25 Energy Generation 10 Energy Capacity 250 Matter Stores 300 Matter Capacity 300 Sight Range 16 Robot Scan Range 14 Terrain Scan Range 16 Terrain Scan Density 10 Armor Coverage 150 Evasion (%) 50 Item Schematics ----------------- None Robot Schematics ------------------ None Fabricated ------------ Nothing Alien Tech Used ----------------- None Achievements -------------- None Challenges ------------ None Game ------ Seed LayeredEfficiencyFacilitator Manual? 0 Play Time 00:43:39 Cumulative 95.1 hours Start 2024.12.27 @ 12:01:19 End 2024.12.27 @ 12:46:49 Sessions 1 Manual Loads 0 Difficulty Rogue Special Mode None Game No. 78 Rogue 78 Adventurer 0 Explorer 0 Win Type - Total 0 Types 0/0/0/0/0/0/0/0/0 Lore% 40 Gallery% 45 Achievement% 38 Wizard Run 0 Options --------- Layout 2 ASCII 0 Keyboard 0 Movement Mouse Keybinds 0 Fullscreen 1 Font 48/Smallcaps Map View 50x44 Zoom Use 0% Tactical HUD 1 Map Filters NONE Filters NONE Steam 1 RUN: 5a43be50-0ab2-4dfd-8466-248e9c58582a